bitfinex-derivatives/quotes_ETHF0:USTF0_20250115
["timestamp","ask_amount","ask_price","bid_price","bid_amount"]
[1736905654211,4.04106016,3240.3,3239.8,0.4901]
[1736905654407,3.52365806,3240.1,3239.8,0.4901]
[1736905654711,3.84621601,3240.2,3240.0,40.8]
[1736905654916,0.4842,3240.3,3240.0,40.8]
[1736905655116,1.415,3240.4,3240.1,3.2078]
[1736905655312,1.415,3240.4,3240.1,3.51656]
[1736905655508,0.30872,3240.6,3240.1,3.51656]
[1736905655704,3.49389913,3240.3,3240.1,3.2078]
[1736905655914,3.49389913,3240.5,3240.2,0.30876]
[1736905656208,3.49389913,3240.6,3240.1,3.7026]
[1736905656411,3.49389913,3240.6,3240.5,3.2078]
[1736905656613,0.30863,3241.5,3241.0,0.30868]
[1736905656909,3.53472331,3241.0,3240.9,3.51649]
[1736905657107,3.53472331,3241.0,3240.9,44.31649]
[1736905657307,0.30864,3241.5,3241.0,0.30868]
[1736905657611,3.22397901,3241.1,3241.0,0.30868]
[1736905658007,3.22397901,3241.3,3240.9,44.31648]
[1736905658207,3.22397901,3241.3,3240.9,44.0078]
[1736905658506,3.30484523,3241.5,3240.9,44.0078]
[1736905658707,3.30484523,3241.5,3241.4,3.2078]
[1736905658914,3.30484523,3241.6,3241.4,3.2078]
[1736905659104,3.6624,3242.1,3241.4,3.2078]
[1736905659309,3.30484523,3241.8,3241.4,3.2078]
[1736905659510,3.26008869,3242.0,3241.5,0.76173]
[1736905659710,0.3086,3241.9,3241.5,0.76173]
[1736905660014,3.26008869,3241.8,3241.5,0.76173]
[1736905660210,3.56869869,3241.8,3241.5,0.4531]
[1736905660403,3.26008869,3241.8,3241.4,3.2078]
[1736905660608,0.30863,3241.5,3241.4,3.2078]
[1736905661008,3.57804677,3241.5,3241.4,3.2078]
[1736905661812,6.50652834,3241.5,3241.4,3.2078]
[1736905662111,0.30871,3240.7,3240.3,3.2078]
[1736905662416,2.92848157,3241.0,3240.3,3.2078]
[1736905662615,3.45968169,3240.6,3240.3,3.2078]
[1736905662819,0.30873,3240.5,3240.3,3.2078]
[1736905663013,3.91878169,3240.9,3240.3,3.2078]
[1736905663216,3.45968169,3240.4,3240.3,3.2078]
[1736905663516,3.27768202,3240.5,3240.3,3.2078]
[1736905663715,3.27768202,3240.5,3240.3,3.51654]
[1736905663904,0.76779,3240.9,3240.4,0.30873]
[1736905664316,0.30871,3240.7,3240.3,3.2078]
[1736905664816,3.42001972,3240.6,3240.3,3.51654]
[1736905665013,3.42001972,3240.6,3240.3,3.2078]
[1736905665212,0.30873,3240.5,3240.3,3.2078]
[1736905665510,3.26736549,3240.4,3240.3,3.2078]
[1736905665914,0.4591,3240.9,3240.3,3.2078]
[1736905666116,0.4591,3240.9,3240.5,0.30873]
[1736905666304,3.26736549,3240.8,3240.3,3.2078]
[1736905666505,4.6228,3241.2,3240.8,0.30869]
[1736905666807,2.92848157,3241.6,3240.8,0.30869]
[1736905666808,3.36094247,3240.9,3240.8,0.30869]
[1736905667007,3.23711157,3241.6,3240.8,3.2078]
[1736905667008,0.30863,3241.5,3240.8,3.2078]
[1736905667313,3.26736549,3241.2,3240.8,3.2078]
[1736905667515,0.30866,3241.3,3240.8,3.51649]
[1736905667916,3.53169648,3241.2,3240.9,40.8]
[1736905668314,3.53169648,3241.2,3240.9,41.10869]
[1736905668520,0.30866,3241.3,3240.9,41.10869]
[1736905668827,3.24058872,3241.3,3240.9,40.8]
[1736905669115,0.30866,3241.3,3240.9,40.8]
[1736905669319,4.34348157,3241.6,3240.9,40.8]
[1736905669320,3.24058872,3241.5,3240.9,40.8]
[1736905669520,0.30864,3241.5,3241.2,3.2078]
[1736905669716,0.30864,3241.4,3241.2,3.2078]
[1736905669916,3.33458074,3241.5,3241.2,3.2078]
[1736905670116,3.33458074,3241.3,3240.8,3.2078]
[1736905670327,0.30869,3240.9,3240.8,3.2078]
[1736905670714,3.70921321,3240.9,3240.8,3.2078]
[1736905671421,0.30874,3240.4,3240.3,40.8]
[1736905671816,3.5634555,3240.4,3240.3,40.8]
[1736905673317,3.7098155,3240.4,3240.2,3.2078]
[1736905673520,0.30875,3240.3,3240.2,3.2078]
[1736905673930,3.75273286,3240.3,3240.2,44.0078]
[1736905674219,3.75273286,3240.3,3240.2,40.8]
[1736905674525,3.75273286,3240.3,3239.8,3.2078]
[1736905674526,0.30878,3240.0,3239.8,3.2078]
[1736905674925,0.30878,3240.0,3239.9,40.8]
[1736905675222,3.31277405,3240.0,3239.9,40.8]
[1736905675425,3.62155405,3240.0,3239.9,40.8]
[1736905675621,0.30878,3240.0,3239.9,40.8]
[1736905675822,3.70275836,3240.0,3239.9,40.8]
[1736905678630,3.39397836,3240.0,3239.9,40.8]
[1736905678927,0.30877,3240.1,3239.9,40.8]
[1736905679322,3.39283378,3240.0,3239.9,40.8]
[1736905680025,3.70161378,3240.0,3239.9,40.8]
[1736905680331,0.30878,3240.0,3239.9,40.8]
[1736905680724,3.83231146,3240.0,3239.9,40.8]
[1736905681122,6.76079303,3240.0,3239.9,40.8]
[1736905681327,0.30882,3239.5,3239.4,3.2078]
[1736905681725,3.31025528,3239.5,3239.4,44.0078]
[1736905681929,3.61907528,3239.5,3239.4,44.0078]
[1736905682133,0.30882,3239.5,3239.4,44.0078]
[1736905682331,3.61907528,3239.5,3239.4,44.0078]
[1736905683031,3.61907528,3239.5,3238.7,0.9722]
[1736905683032,3.31025528,3239.5,3238.9,3.2078]
[1736905683333,0.30887,3239.0,3238.9,3.2078]
[1736905683534,0.30884,3239.3,3238.9,44.31668]
[1736905683735,3.31025528,3239.5,3238.9,44.0078]
[1736905683928,0.30883,3239.4,3239.3,3.2078]
[1736905684333,3.48029728,3239.4,3239.3,3.2078]
[1736905684732,3.17146728,3239.4,3239.3,3.2078]
[1736905685134,0.30883,3239.4,3239.3,3.2078]
[1736905685340,3.38648157,3239.6,3238.9,44.0078]
[1736905685534,0.30886,3239.2,3238.9,44.0078]
[1736905685837,3.3573077,3239.5,3238.9,44.0078]
[1736905686136,3.38648157,3239.6,3239.0,0.30887]
[1736905686137,3.3573077,3239.1,3239.0,0.30887]
[1736905686525,0.30884,3239.4,3239.0,0.30887]
[1736905686731,3.42623935,3239.1,3239.0,0.30887]
[1736905686933,3.42623935,3239.1,3238.9,44.0078]
[1736905687237,0.30885,3239.3,3238.9,44.0078]
[1736905687530,3.42623935,3239.0,3238.9,44.31668]
[1736905687736,3.26300713,3239.1,3238.9,44.0078]
[1736905687939,0.30887,3239.0,3238.9,44.0078]
[1736905688241,3.26300713,3239.0,3238.9,44.0078]
[1736905688436,3.26300713,3239.1,3238.9,44.31668]
[1736905688629,0.458,3239.6,3239.4,0.30883]
[1736905688838,0.30877,3240.1,3239.7,0.3088]
[1736905689134,3.2078,3240.3,3239.9,0.30878]
[1736905689340,3.4164533,3240.2,3240.0,41.10877]
[1736905689533,3.51655,3240.3,3240.0,41.10877]
[1736905689730,3.55097502,3240.2,3240.0,41.10877]
[1736905690437,0.77014,3240.4,3240.0,40.8]
[1736905690438,3.85972502,3240.3,3240.0,40.8]
[1736905690739,2.66213,3240.5,3240.1,0.30876]
[1736905690941,2.66213,3240.5,3240.2,3.2078]
[1736905691238,3.21594017,3240.3,3240.2,3.2078]
[1736905691434,3.21594017,3240.4,3240.2,3.2078]
[1736905691639,2.66213,3240.5,3240.2,3.2078]
[1736905691841,3.88338976,3240.4,3240.2,3.2078]
[1736905692138,0.30875,3240.3,3240.2,3.2078]
[1736905692539,3.57464976,3240.3,3240.2,3.2078]
[1736905692930,3.41990997,3240.4,3240.2,3.2078]
[1736905693128,2.3534,3240.5,3240.0,40.8]
[1736905693431,6.13628157,3240.3,3239.4,3.2078]
[1736905693635,0.30881,3239.7,3239.4,3.2078]
[1736905693836,2.92848157,3239.9,3239.4,3.2078]
[1736905694037,3.55269723,3239.6,3239.4,3.51663]
[1736905694331,3.86150723,3239.7,3239.4,3.2078]
[1736905694743,2.92848157,3239.9,3239.4,3.2078]
[1736905694944,3.40396778,3239.6,3239.4,3.2078]
[1736905695241,0.30881,3239.6,3239.4,3.2078]
[1736905695440,0.30883,3239.4,3239.3,40.8]
[1736905695941,3.78336394,3239.4,3239.3,40.8]
[1736905696140,3.47453394,3239.4,3239.3,40.8]
[1736905696344,3.47453394,3239.4,3239.3,41.10884]
[1736905697043,1.41,3240.3,3239.4,0.77209]
[1736905697345,1.41,3240.3,3240.0,3.51657]
[1736905697346,3.42590478,3240.1,3240.0,3.51657]
[1736905697739,0.4595,3240.7,3240.4,0.30874]
[1736905697944,0.30867,3241.1,3240.7,0.30871]
[1736905698239,3.35633799,3241.1,3241.0,0.30868]
[1736905698638,0.30863,3241.6,3241.1,0.30867]
[1736905698832,0.30863,3241.6,3240.8,3.2078]
[1736905698833,0.30862,3241.7,3241.2,41.10866]
[1736905699041,3.51655456,3241.5,3241.2,40.8]
[1736905699340,0.30865,3241.4,3241.2,40.8]
[1736905699543,3.44006217,3241.4,3241.2,40.8]
[1736905699842,0.30864,3241.4,3241.2,40.8]
[1736905700040,0.30865,3241.3,3241.2,40.8]
[1736905700347,3.74871217,3241.3,3241.2,40.8]
[1736905700538,0.30863,3241.5,3241.2,40.8]
[1736905700738,3.83232291,3241.3,3241.2,40.8]
[1736905700934,3.52367291,3241.3,3241.2,40.8]
[1736905701141,0.30865,3241.4,3241.2,40.8]
[1736905701340,0.30864,3241.4,3241.2,40.8]
[1736905701540,3.52367291,3241.3,3241.2,40.8]
[1736905702345,1.409,3241.7,3241.2,44.0078]
[1736905702540,0.30863,3241.6,3241.2,44.0078]
[1736905702936,3.27888381,3241.5,3241.2,44.0078]
[1736905703346,3.58751381,3241.5,3241.2,44.0078]
[1736905703641,0.30862,3241.7,3241.2,44.31646]
[1736905703851,3.52048752,3241.7,3241.2,44.0078]
[1736905704145,0.30862,3241.7,3241.2,44.31646]
[1736905704342,3.82910752,3241.7,3241.2,44.31646]
[1736905704743,3.52048752,3241.7,3241.2,44.0078]
[1736905704945,3.52048752,3241.7,3241.4,0.30864]
[1736905705646,3.82910752,3241.7,3241.3,0.30865]
[1736905705941,1.23428,3242.1,3241.6,0.30862]
[1736905706153,3.51330825,3242.0,3241.7,3.51641]
[1736905706344,2.3347,3242.1,3241.7,3.2078]
[1736905706653,0.3086,3241.8,3241.7,3.2078]
[1736905707153,0.30862,3241.7,3241.3,3.2078]
[1736905707645,3.21597849,3241.6,3241.3,3.2078]
[1736905708147,3.21597849,3241.6,3241.4,0.30864]
[1736905708440,3.52459849,3241.6,3241.3,3.2078]
[1736905708643,3.21597849,3241.6,3241.3,3.2078]
[1736905709441,0.9257,3242.1,3241.3,3.2078]
[1736905709645,0.9257,3242.1,3241.8,3.2078]
[1736905709849,3.56890674,3242.0,3241.8,3.2078]
[1736905710052,3.56890674,3242.0,3241.8,3.5164]
[1736905710241,3.56890674,3242.0,3241.8,3.2078]
[1736905710442,3.87749674,3242.0,3241.8,3.2078]
[1736905710649,3.56890674,3242.0,3241.8,3.2078]
[1736905710851,3.56890674,3242.0,3241.8,3.5164]
[1736905711045,3.56890674,3242.0,3241.8,3.2078]
[1736905711255,3.56890674,3242.0,3241.4,3.2078]
[1736905711450,0.3086,3241.9,3241.4,3.2078]
[1736905711650,0.30862,3241.7,3241.4,3.2078]
[1736905712053,3.37135503,3241.6,3241.4,3.51644]
[1736905712247,3.37135503,3241.6,3241.4,3.2078]
[1736905712445,3.67997503,3241.7,3241.4,3.2078]
[1736905712643,0.30863,3241.5,3241.4,3.2078]
[1736905712851,0.30863,3241.6,3241.4,3.2078]
[1736905713053,3.37274043,3241.5,3241.4,3.2078]
[1736905713750,0.30862,3241.7,3241.4,3.51644]
[1736905714054,0.30859,3242.0,3241.7,0.30861]
[1736905714450,0.9257,3242.1,3241.8,3.2078]
[1736905714451,3.29410735,3241.9,3241.8,3.2078]
[1736905714657,0.4858,3242.5,3241.8,3.2078]
[1736905714842,0.30855,3242.4,3241.8,3.2078]
[1736905715046,3.54802267,3242.2,3242.0,0.30858]
[1736905715359,3.54802267,3242.3,3241.9,40.8]
[1736905715649,3.54802267,3242.1,3241.9,40.8]
[1736905715855,0.30859,3242.0,3241.9,40.8]
[1736905716148,3.56522528,3242.0,3241.9,40.8]
[1736905716544,3.25663528,3242.0,3241.4,3.51644]
[1736905716746,0.30863,3241.6,3241.4,3.2078]
[1736905716941,0.30863,3241.5,3241.4,3.2078]
[1736905717147,3.64815935,3241.5,3241.4,3.2078]
[1736905717448,0.30863,3241.6,3241.4,44.0078]
[1736905717847,3.27830539,3241.5,3241.4,44.0078]
[1736905718153,3.37309477,3241.9,3241.4,44.0078]
[1736905718154,0.30862,3241.7,3241.4,44.0078]
[1736905718348,3.27830539,3241.8,3241.5,0.30863]
[1736905718648,0.958,3241.9,3241.4,44.0078]
[1736905718853,0.30863,3241.5,3241.4,44.0078]
[1736905719249,3.83488238,3241.5,3241.4,40.8]
[1736905720448,7.04268238,3241.5,3241.4,40.8]
[1736905720645,0.30867,3241.1,3241.0,3.2078]
[1736905720846,2.72376477,3241.1,3241.0,3.2078]
[1736905721046,0.30871,3240.7,3240.4,3.2078]
[1736905721248,0.4776,3241.0,3240.4,3.2078]
[1736905721546,3.49360287,3240.6,3240.5,40.8]
[1736905721750,0.30872,3240.6,3240.5,40.8]
[1736905721956,4.12302576,3240.6,3240.5,40.8]
[1736905722356,0.77032,3240.6,3240.5,40.8]
[1736905722559,4.12302576,3240.6,3240.5,40.8]
[1736905722758,3.81430576,3240.6,3240.5,40.8]
[1736905723060,4.12302576,3240.6,3240.5,40.8]
[1736905724448,0.30873,3240.5,3240.4,3.2078]
[1736905724854,3.87498451,3240.5,3240.4,3.2078]
[1736905725055,3.56625451,3240.5,3240.1,40.8]
[1736905725355,0.30876,3240.2,3240.1,40.8]
[1736905725861,4.31133913,3240.2,3240.1,40.8]
[1736905727063,9.31133913,3240.2,3240.1,40.8]
[1736905727563,0.30884,3239.3,3239.2,3.2078]
[1736905727866,0.77197,3239.9,3239.2,44.0078]
[1736905727867,4.33247785,3239.6,3239.2,44.0078]
[1736905728250,0.30884,3239.3,3239.2,44.0078]
[1736905728465,3.35456624,3239.5,3239.2,44.0078]
[1736905728860,0.30884,3239.4,3239.2,44.0078]
[1736905729164,3.31829396,3239.3,3239.2,44.0078]
[1736905729360,3.62713396,3239.3,3239.2,44.0078]
[1736905729567,3.62713396,3239.3,3239.2,40.8]
[1736905729764,0.30884,3239.3,3239.2,40.8]
[1736905729962,3.60656582,3239.3,3239.2,40.8]
[1736905730164,0.30888,3238.9,3238.8,3.2078]
[1736905730660,3.60660582,3238.9,3238.2,3.2078]
[1736905730864,0.30892,3238.5,3238.2,3.2078]
[1736905731053,3.23738785,3238.6,3238.2,3.2078]
[1736905731261,3.50409985,3238.4,3238.3,40.8]
[1736905731463,3.81302985,3238.5,3238.3,40.8]
[1736905731670,3.50409985,3238.5,3238.3,40.8]
[1736905731970,3.36119413,3238.5,3238.3,40.8]
[1736905732563,3.67011413,3238.5,3238.3,40.8]
[1736905732762,3.36119413,3238.5,3238.3,40.8]
[1736905733260,3.67012413,3238.5,3238.3,40.8]
[1736905733464,3.36119413,3238.5,3238.3,40.8]
[1736905733964,3.67012413,3238.5,3238.3,40.8]
[1736905734663,0.30893,3238.4,3238.3,40.8]
[1736905734971,2.92847785,3238.6,3238.3,40.8]
[1736905735270,3.23738785,3238.6,3238.3,40.8]
[1736905735463,3.84196596,3238.5,3238.3,40.8]
[1736905735663,0.30893,3238.4,3238.3,40.8]
[1736905735863,3.84195596,3238.5,3238.3,40.8]
[1736905736072,3.54469615,3238.4,3238.3,40.8]
[1736905736465,0.30892,3238.5,3238.3,40.8]
[1736905736665,3.54469615,3238.4,3238.3,40.8]
[1736905736871,3.85362615,3238.4,3238.3,40.8]
[1736905737360,0.30893,3238.4,3238.3,40.8]
[1736905737560,3.87558228,3238.4,3238.3,40.8]
[1736905738572,3.87236101,3238.4,3238.3,40.8]
[1736905739178,3.56665228,3238.4,3238.3,40.8]
[1736905739472,0.30892,3238.5,3238.3,40.8]
[1736905739667,3.8468256,3238.5,3238.3,40.8]
[1736905739870,0.30892,3238.5,3238.3,40.8]
[1736905740068,3.2933343,3238.4,3238.3,40.8]
[1736905740572,0.30892,3238.5,3238.3,40.8]
[1736905740775,3.6022543,3238.5,3238.3,40.8]
[1736905740976,1.404,3238.7,3238.3,40.8]
[1736905741185,3.33975602,3238.4,3238.3,40.8]
[1736905741478,3.33975602,3238.5,3238.3,40.8]
[1736905741674,0.30891,3238.6,3238.3,40.8]
[1736905741874,3.43151456,3238.4,3238.3,40.8]
[1736905742175,1.26582,3239.6,3238.5,0.7723]
[1736905742369,1.26582,3239.6,3239.3,3.2078]
[1736905742370,0.957,3239.6,3239.3,3.2078]
[1736905742571,3.43151456,3239.4,3239.3,3.2078]
[1736905742973,2.84173982,3239.5,3239.3,44.0078]
[1736905743173,0.30877,3240.1,3239.6,0.3088]
[1736905743475,0.30874,3240.4,3240.0,3.51657]
[1736905743679,0.30875,3240.3,3240.0,3.2078]
[1736905743973,3.50853074,3240.2,3240.0,3.2078]
[1736905744177,1.97974302,3240.3,3240.0,3.2078]
[1736905744479,3.50853074,3240.1,3240.0,3.2078]
[1736905744673,1.97975302,3240.2,3240.0,3.2078]
[1736905744875,0.30876,3240.2,3240.0,3.2078]
[1736905745279,3.67545442,3240.1,3240.0,3.2078]
[1736905745476,0.3088,3239.8,3239.3,44.0078]
[1736905745676,0.4503,3240.0,3239.3,44.0078]
[1736905745976,3.33403285,3239.9,3239.7,3.2078]
[1736905746776,3.33403285,3240.0,3239.7,3.2078]
[1736905746980,0.4712,3240.1,3239.7,3.2078]
[1736905747279,0.30883,3239.4,3239.3,44.0078]
[1736905747578,0.30883,3239.4,3239.3,3.2078]
[1736905747777,3.66568943,3239.4,3239.3,3.2078]
[1736905748177,0.30888,3238.9,3238.8,3.2078]
[1736905748370,0.9373,3239.3,3238.8,3.2078]
[1736905748677,3.64813778,3238.9,3238.8,3.2078]
[1736905748976,0.30887,3239.0,3238.8,3.2078]
[1736905749178,3.72859678,3238.9,3238.8,3.2078]
[1736905749375,0.30888,3238.9,3238.8,3.2078]
[1736905749677,3.72859678,3238.9,3238.8,3.2078]
[1736905751380,3.41971678,3238.9,3238.8,3.2078]
[1736905751683,3.41971678,3238.9,3238.8,3.51669]
[1736905751971,1.399,3239.1,3238.8,3.2078]
[1736905752179,3.52766298,3239.0,3238.8,3.2078]
[1736905752377,3.52766298,3239.0,3238.8,3.51668]
[1736905752578,1.399,3239.1,3238.8,3.2078]
[1736905752778,0.30888,3238.9,3238.8,3.2078]
[1736905753290,3.82001146,3238.9,3238.8,3.2078]
[1736905753487,3.51113146,3238.9,3238.3,44.0078]
[1736905753688,0.30891,3238.6,3238.3,44.0078]
[1736905754086,3.51113146,3238.9,3238.3,3.2078]
[1736905754087,0.30893,3238.4,3238.3,3.2078]
[1736905754478,3.25186609,3238.4,3238.3,3.2078]
[1736905754683,3.56079609,3238.4,3238.3,44.0078]
[1736905754985,0.30893,3238.4,3238.3,44.0078]
[1736905755389,3.79671015,3238.4,3238.3,44.0078]
[1736905755588,3.48778015,3238.4,3238.3,44.0078]
[1736905755983,3.81035569,3238.5,3238.3,44.0078]
[1736905756292,0.30892,3238.5,3238.3,44.0078]
[1736905756487,3.50143569,3238.4,3238.3,44.0078]
[1736905757390,0.30892,3238.5,3238.3,44.0078]
[1736905757990,3.46139298,3238.4,3238.3,44.0078]
[1736905758690,0.30893,3238.4,3238.3,44.0078]
[1736905759089,3.78494805,3238.4,3238.3,44.0078]
[1736905759490,3.47601805,3238.4,3238.3,44.0078]
[1736905759678,3.78494805,3238.4,3238.3,44.0078]
[1736905759882,0.30893,3238.4,3238.3,44.0078]
[1736905760088,3.80156093,3238.4,3238.3,44.0078]
[1736905762684,3.80156093,3238.4,3238.3,3.2078]
[1736905763191,3.80156093,3238.4,3238.3,44.0078]
[1736905765494,6.22182712,3238.4,3238.3,44.0078]
[1736905765792,7.62182712,3238.4,3238.3,3.2078]
[1736905765994,0.30896,3238.1,3238.0,0.002]
[1736905766202,2.72922619,3238.1,3238.0,0.002]
[1736905766494,6.23106715,3238.1,3238.0,40.802]
[1736905767083,6.23106715,3238.1,3237.5,3.6942]
[1736905767084,0.309,3237.6,3237.5,3.2078]
[1736905767289,2.72926619,3237.6,3237.5,3.2078]
[1736905767494,5.84616402,3237.6,3236.9,44.0078]
[1736905767693,0.30905,3237.2,3236.9,44.0078]
[1736905767893,6.33626402,3237.6,3236.9,44.0078]
[1736905768097,3.85810263,3237.1,3236.9,44.0078]
[1736905768394,0.30905,3237.1,3236.9,44.0078]
[1736905768597,2.91036619,3237.6,3236.9,44.0078]
[1736905768892,0.30905,3237.2,3236.9,44.0078]
[1736905769293,3.50580232,3237.1,3236.9,44.0078]
[1736905769493,3.50580232,3237.1,3236.9,44.31687]
[1736905769691,3.81484232,3237.3,3236.9,44.0078]
[1736905769889,3.75091236,3237.2,3236.9,44.0078]
[1736905770089,3.75091236,3237.2,3236.9,44.31687]
[1736905770290,0.30905,3237.2,3236.9,44.31687]
[1736905770490,3.44186236,3237.1,3236.9,44.0078]
[1736905771092,0.30906,3237.1,3236.9,44.0078]
[1736905771597,3.25968246,3237.0,3236.9,44.0078]
[1736905771798,3.25968246,3237.0,3236.9,44.31687]
[1736905771995,3.25968246,3237.0,3236.9,44.0078]
[1736905772194,3.68044159,3237.1,3236.9,44.0078]
[1736905772799,0.30906,3237.1,3236.9,44.0078]
[1736905773101,3.27089123,3237.0,3236.9,44.0078]
[1736905773597,2.91036619,3237.6,3236.9,44.0078]
[1736905773598,0.4901,3237.6,3236.9,44.0078]
[1736905773798,0.30903,3237.4,3236.9,3.2078]
[1736905774001,0.30903,3237.4,3237.2,0.30904]
[1736905774002,3.50609061,3237.3,3237.2,0.30904]
[1736905774300,0.30903,3237.4,3237.2,41.10904]
[1736905774602,3.50609061,3237.3,3237.2,41.10904]
[1736905775006,3.50609061,3237.3,3237.2,40.8]
[1736905776204,3.81512061,3237.3,3237.2,40.8]
[1736905776405,0.30903,3237.3,3237.2,40.8]
[1736905776699,3.58995774,3237.3,3237.2,40.8]
[1736905776904,3.28092774,3237.3,3237.2,40.8]
[1736905777306,0.30903,3237.3,3237.2,40.8]
[1736905777604,3.75019902,3237.3,3237.2,40.8]
[1736905777805,5.86143521,3237.3,3236.9,3.2078]
[1736905778106,2.72932619,3237.0,3236.9,3.2078]
[1736905778301,4.11232619,3237.0,3236.9,3.2078]
[1736905778502,7.56906581,3237.0,3236.9,3.2078]
[1736905780009,10.46780581,3237.0,3236.5,44.0078]
[1736905780312,2.72936619,3236.6,3236.5,44.0078]
[1736905780807,6.03196366,3236.6,3236.5,44.0078]
[1736905782008,6.03196366,3236.6,3236.5,40.8]
[1736905783103,5.72286366,3236.6,3236.1,3.2078]
[1736905783309,0.4948,3236.5,3236.1,3.2078]
[1736905783708,0.30913,3236.3,3236.2,40.8]
[1736905784204,3.58447592,3236.3,3236.2,40.8]
[1736905784408,6.00474211,3236.3,3236.2,40.8]
[1736905785508,7.38874211,3236.3,3236.2,40.8]
[1736905785819,0.30914,3236.2,3236.1,3.2078]
[1736905786315,0.30915,3236.1,3235.7,0.30918]
[1736905786612,3.55118412,3236.2,3235.7,0.30918]
[1736905786613,0.30914,3236.2,3235.7,0.30918]
[1736905786807,3.55118412,3236.0,3235.6,3.2078]
[1736905787011,3.86034412,3236.0,3235.6,3.51699]
[1736905787212,0.30916,3236.0,3235.6,3.51699]
[1736905787516,3.4529861,3235.9,3235.7,0.30918]
[1736905788013,3.7621561,3235.9,3235.6,3.51699]
[1736905788317,3.7621561,3235.9,3235.6,3.2078]
[1736905788318,3.4529861,3235.9,3235.6,3.2078]
[1736905788518,0.30919,3235.7,3235.6,3.2078]
[1736905789215,0.30918,3235.8,3235.6,3.517]
[1736905789716,3.4529861,3235.9,3235.6,3.2078]
[1736905789913,0.30919,3235.7,3235.6,3.517]
[1736905790119,3.4529861,3235.9,3235.6,3.517]
[1736905790120,0.30919,3235.8,3235.6,3.517]
[1736905790511,3.7621561,3235.9,3235.8,0.30918]
[1736905791111,3.7621561,3235.9,3235.8,41.10918]
[1736905791310,3.7621561,3235.9,3235.8,40.8]
[1736905792715,3.4529861,3235.9,3235.8,41.10918]
[1736905792916,0.80392,3236.5,3236.3,0.30912]
[1736905793117,0.80392,3236.5,3236.2,3.2078]
[1736905793118,0.30913,3236.3,3236.2,3.2078]
[1736905793519,3.72395187,3236.3,3236.2,3.2078]
[1736905794129,3.72395187,3236.3,3235.8,40.8]
[1736905794130,0.30917,3235.9,3235.8,40.8]
[1736905794820,3.59796015,3235.9,3235.8,40.8]
[1736905795323,3.28879015,3235.9,3235.8,41.10918]
[1736905795714,0.30916,3236.1,3235.9,0.30916]
[1736905796015,3.28968606,3236.1,3235.9,0.30916]
[1736905796215,0.30917,3235.9,3235.8,40.8]
[1736905796620,3.59885606,3235.9,3235.8,40.8]
[1736905797023,6.01912225,3235.9,3235.8,40.8]
[1736905798526,5.70995225,3235.9,3235.8,40.8]
[1736905798822,3.28968606,3235.9,3235.8,41.10918]
[1736905799221,2.72940619,3236.2,3235.8,40.8]
[1736905799423,3.43547813,3236.1,3235.9,0.30917]
[1736905799618,3.43547813,3236.1,3235.8,40.8]
[1736905799920,1.384,3236.4,3235.8,40.8]
[1736905800221,3.30066495,3236.1,3235.8,40.8]
[1736905800422,3.30066495,3236.3,3236.0,0.30916]
[1736905800624,1.365,3236.3,3236.0,0.30916]
[1736905800814,5.14558855,3236.3,3236.0,0.30916]
[1736905801010,5.14558855,3236.3,3235.9,0.30916]
[1736905801322,1.365,3236.3,3235.9,0.30917]
[1736905801525,3.47145855,3236.2,3236.0,0.30915]
[1736905801917,3.47145855,3236.2,3235.8,40.8]
[1736905801918,3.47145855,3236.2,3235.9,0.30916]
[1736905803318,3.47145855,3236.2,3236.0,0.30915]
[1736905803521,3.47145855,3236.2,3235.8,40.8]
[1736905803831,3.78059855,3236.2,3235.8,41.10917]
[1736905804213,3.47145855,3236.2,3235.9,0.30916]
[1736905804418,3.78059855,3236.2,3235.9,0.30916]
[1736905804719,3.78059855,3236.2,3235.8,40.8]
[1736905804720,3.78059855,3236.2,3235.8,41.10917]
[1736905804922,3.78059855,3236.2,3235.8,40.8]
[1736905805125,3.78059855,3236.2,3235.8,41.10917]
[1736905806028,3.47145855,3236.2,3236.0,0.30916]
[1736905806232,3.47145855,3236.2,3236.0,3.51696]
[1736905806625,3.47145855,3236.2,3236.1,0.30915]
[1736905806827,0.9445,3237.2,3237.0,0.30906]
[1736905807026,0.9445,3237.2,3236.7,0.30909]
[1736905807233,0.30909,3236.7,3236.6,3.2078]
[1736905807434,2.42026619,3236.9,3236.1,3.2078]
[1736905807629,2.72940619,3236.2,3236.1,3.2078]
[1736905807928,6.29102391,3236.2,3236.1,3.2078]
[1736905808937,5.98188391,3236.2,3235.5,3.2078]
[1736905809229,2.42026619,3235.6,3235.5,3.2078]
[1736905809623,6.73894187,3235.6,3234.6,3.2078]
[1736905809929,2.42026619,3234.9,3234.7,0.30928]
[1736905810127,0.4859,3235.5,3234.6,3.2078]
[1736905810128,1.365,3235.2,3234.8,40.8]
[1736905810326,1.365,3235.2,3235.1,3.2078]
[1736905810527,4.79642389,3235.2,3235.1,3.2078]
[1736905812736,0.30926,3234.9,3234.8,40.8]
[1736905813140,6.08537789,3234.9,3234.8,40.8]
[1736905814841,5.77611789,3234.9,3234.8,40.8]
[1736905815037,6.08537789,3234.9,3234.8,40.8]
[1736905815526,5.77611789,3234.9,3234.8,40.8]
[1736905815731,3.3558517,3234.9,3234.8,40.8]
[1736905815935,4.6106117,3234.9,3234.8,40.8]
[1736905816233,0.9455,3234.9,3234.8,40.8]
[1736905816652,4.32571208,3234.9,3234.8,40.8]
[1736905817233,3.38021208,3234.9,3234.8,40.8]
[1736905817437,1.365,3235.4,3234.8,40.8]
[1736905817742,3.49849757,3235.3,3235.1,3.2078]
[1736905818339,2.42026619,3236.1,3235.6,0.30919]
[1736905818535,2.42026619,3236.1,3235.7,0.30918]